[Event "Austrian Women Bundesliga 2023-24"]
[Site "Austria"]
[Date "2024.04.12"]
[Round "7"]
[White "Wielander, Magdalena"]
[Black "Katter, Marlene"]
[Result "0-1"]
[ECO "C10"]
[WhiteElo "1622"]
[BlackElo "1902"]
[Annotator "TA"]
[PlyCount "86"]
[EventDate "2023.11.21"]
[EventType "team-tourn"]
[EventCountry "AUT"]
[SourceTitle "playchess.com"]
[Source "ChessBase"]
[SourceQuality "1"]
[TimeControl "40/5400+30:1800+30"]

{[%evp 9,86,33,38,-2,-2,-9,-16,-62,-25,-34,-28,-24,0,-43,-28,-58,-34,-67,-52,-117,-80,-281,-84,-79,-59,-57,-60,-61,-24,-62,-70,-73,-76,-139,-143,-156,-137,-150,-150,-138,-116,-142,-129,-168,-102,-256,-260,-315,-304,-295,-250,-313,-279,-293,-308,-618,-608,-556,-603,-657,-516,-3214,-2112,-5182,-5094,-2388,-2904,-29985,-29986,-29986,-29987,-29988,-29988,-29990,-29991,-29991,-29989,-29990,-29991]} 1. e4 {[%emt 0:00:05]} e6 {[%emt 0:00:11]} 2. d4 {[%emt 0:00:10]} d5 {[%emt 0:00:16]} 3. Nd2 {[%emt 0:00:18]} dxe4 {[%emt 0:00:29]} 4. Nxe4 {[%emt 0:00:20]} Nd7 {[%emt 0:00:39]} 5. Nf3 {[%emt 0:00:43]} Ngf6 {[%emt 0:00:37]} 6. Nc3 {[%emt 0:01:32]} Bb4 {[%emt 0:14:19]} 7. Bd2 {[%emt 0:10:32]} O-O {[%emt 0:03:34]} 8. Nb5 {[%emt 0:11:04]} (8. Be2 $11) 8... Bxd2+ {[%emt 0:02:35]} 9. Qxd2 {[%emt 0:00:06]} a6 {[%emt 0:03:11]} 10. Nc3 {[%emt 0:01:30]} b6 {[%emt 0:05:31]} 11. O-O-O {[%emt 0:04:26]} Bb7 {[%emt 0:04:33]} 12. Bd3 {[%emt 0:05:29]} Qe7 {[%emt 0:05:52]} 13. Rhg1 {[%emt 0:18:48]} c5 {[%emt 0:07:08]} 14. Qf4 {[%emt 0:12:53]} (14. Qe3 $15) 14... Rfc8 {[%emt 0:15:16] Hoping for ...c4.} 15. Ne4 $2 {[%emt 0:04:00] [#]} (15. Qh4 $17 Nf8 16. dxc5) 15... Nxe4 $2 {[%emt 0:06:07]} (15... c4 $19 {is more deadly.} 16. Nxf6+ Nxf6) 16. Bxe4 $17 {[%emt 0:00:06]} Bxe4 {[%emt 0:00:42]} 17. Qxe4 {[%emt 0:00:05]} Nf6 {[%emt 0:00:44]} 18. Qe2 {[%emt 0:05:05][%cal Od4d5]} Qc7 {[%emt 0:03:41]} 19. Ne5 {[%emt 0:07:22]} c4 {[%emt 0:02:51] ...c3 would now be deadly.} 20. c3 {[%emt 0:04:07]} b5 {[%emt 0:01:39]} 21. Qc2 {[%emt 0:03:37]} (21. Kb1 $142) 21... a5 {[%emt 0:01:29]} 22. Kb1 {[%emt 0:01:18]} Nd5 {[%emt 0:02:01]} 23. Rc1 {[%emt 0:03:11]} Rab8 {[%emt 0:05:07]} 24. Ka1 {[%emt 0:01:47]} f6 {[%emt 0:03:48]} 25. Nf3 {[%emt 0:00:11]} Qc6 {[%emt 0:01:43] Black is more active.} 26. Nd2 {[%emt 0:01:12]} Nf4 {[%emt 0:00:45]} ({Black should try} 26... b4 $19 {[%cal Ob4b3]} 27. g3 b3) 27. f3 $2 {[%emt 0:02:17] [#]} (27. Rce1 $17) 27... Ne2 $1 $19 {[%emt 0:03:33][%csl LRc1,LRg1]} 28. Rge1 {[%emt 0:00:31]} Nxc1 {[%emt 0:00:21]} 29. Rxc1 {[%emt 0:00:19]} Qd5 {[%emt 0:03:23]} 30. Qe4 {[%emt 0:01:04]} b4 {[%emt 0:01:41]} 31. Re1 {[%emt 0:00:39]} Rb6 {[%emt 0:01:08]} 32. f4 $2 {[%emt 0:00:47]} (32. Nb1) 32... bxc3 {[%emt 0:00:30]} 33. bxc3 {[%emt 0:00:10]} Rcb8 {[%emt 0:00:13]} 34. g3 {[%emt 0:01:04]} Qxe4 {[%emt 0:00:39]} 35. Rxe4 {[%emt 0:00:12][%mdl 4096] Endgame. KRR-KRN} (35. Nxe4 $142 Rb2 36. Nd6) 35... Rb2 {[%emt 0:00:23]} 36. Re2 {[%emt 0:00:50]} Rc2 {[%emt 0:00:24]} 37. Re1 {[%emt 0:00:36] Repels Rc1+} Rxd2 {[%emt 0:00:10]} 38. Rb1 {[%emt 0:00:29] Wards off Rbb2} Rxb1+ {Black mates.} 39. Kxb1 {[%emt 0:00:04]} Rxh2 {[%emt 0:00:17]} 40. g4 {[%emt 0:00:25]} Rf2 {[%emt 0:00:20]} 41. f5 {[%emt 0:30:45]} exf5 {[%emt 0:30:13]} 42. gxf5 {[%emt 0:00:06]} Rxf5 {[%emt 0:00:08]} 43. Kb2 {[%emt 0:00:07]} h5 {[%emt 0:00:05] Weighted Error Value: White=0.88/Black=0.23 (precise) .  Loses game:     	White=1     	---        Missed win:     	---       	Black=1      Mistake:       	White=5     	Black=1      Inaccurate:     	White=6     	Black=3      OK:         	White=5     	Black=10     Best:        	White=1     	Black=1} 0-1

[Event "Austrian Women Bundesliga 2023-24"]
[Site "Austria"]
[Date "2024.04.13"]
[Round "8.1"]
[White "Babiy, Olga"]
[Black "Skuhala, Barbara"]
[Result "1-0"]
[ECO "B23"]
[WhiteElo "2306"]
[BlackElo "2188"]
[Annotator "RC"]
[PlyCount "55"]
[EventDate "2023.11.21"]
[EventType "team-tourn"]
[EventCountry "AUT"]
[SourceTitle "playchess.com"]
[Source "ChessBase"]
[SourceQuality "1"]
[TimeControl "40/5400+30:1800+30"]

1. e4 {[%emt 0:00:06]} c5 {[%emt 0:00:05]} 2. Nc3 {[%emt 0:00:06]} d6 {[%emt 0:00:07]} 3. d4 {[%emt 0:00:09]} cxd4 {[%emt 0:00:07]} 4. Qxd4 {[%emt 0:00:04]} Nc6 {[%emt 0:00:07]} 5. Qd2 {[%emt 0:00:05]} g6 {[%emt 0:01:16]} 6. b3 {[%emt 0:00:52]} Bh6 {[%emt 0:00:57]} 7. f4 {[%emt 0:00:32]} Nf6 {[%emt 0:00:07]} 8. Bb2 {[%emt 0:02:17]} O-O {[%emt 0:01:32]} 9. O-O-O {[%emt 0:01:30]} Re8 {[%emt 0:03:13]} 10. Nge2 {[%emt 0:10:26]} e5 {[%emt 0:19:32]} 11. g3 {[%emt 0:02:31]} Bg4 {[%emt 0:00:57]} 12. Bg2 {[%emt 0:04:00]} Nd4 {[%emt 0:04:57]} 13. Nxd4 {[%emt 0:04:58]} Bxd1 {[%emt 0:03:50]} 14. Rxd1 {[%emt 0:00:11]} exd4 {[%emt 0:00:47]} 15. Qxd4 {[%emt 0:00:04]} Bg7 {[%emt 0:00:07]} 16. Nb5 {[%emt 0:11:07]} Nh5 {[%emt 0:09:28]} 17. Qxd6 {[%emt 0:05:09]} Bxb2+ {[%emt 0:08:54]} 18. Kxb2 {[%emt 0:00:12]} Qa5 {[%emt 0:03:04]} 19. Qd3 {[%emt 0:04:10]} Red8 {[%emt 0:08:16]} 20. Nd6 {[%emt 0:01:02]} Qc7 {[%emt 0:00:17]} 21. e5 {[%emt 0:00:15]} Ng7 {[%emt 0:00:32]} 22. Bd5 {[%emt 0:01:53]} Rd7 {[%emt 0:17:02]} 23. g4 {[%emt 0:02:53]} Kf8 {[%emt 0:11:15]} 24. Qh3 {[%emt 0:03:45]} h5 {[%emt 0:05:00]} 25. gxh5 {[%emt 0:02:29]} Nxh5 {[%emt 0:00:25]} 26. f5 {[%emt 0:00:38]} Rxd6 {[%emt 0:00:55]} 27. exd6 {[%emt 0:00:07]} Qxd6 {[%emt 0:00:10]} 28. fxg6 {[%emt 0:00:22]} 1-0

[Event "Austrian Women Bundesliga 2023-24"]
[Site "Austria"]
[Date "2024.04.13"]
[Round "8.2"]
[White "Teuschler, Barbara"]
[Black "Radeva, Viktoria"]
[Result "0-1"]
[ECO "B82"]
[WhiteElo "2052"]
[BlackElo "2315"]
[Annotator "RC"]
[PlyCount "68"]
[EventDate "2023.11.21"]
[EventType "team-tourn"]
[EventCountry "AUT"]
[SourceTitle "playchess.com"]
[Source "ChessBase"]
[SourceQuality "1"]
[TimeControl "40/5400+30:1800+30"]

1. e4 {[%emt 0:00:01]} c5 {[%emt 0:00:31]} 2. Nf3 {[%emt 0:00:05]} a6 {[%emt 0:00:04]} 3. Nc3 {[%emt 0:00:06]} e6 {[%emt 0:00:35]} 4. d4 {[%emt 0:00:13]} cxd4 {[%emt 0:00:05]} 5. Nxd4 {[%emt 0:00:05]} Qc7 {[%emt 0:02:58]} 6. Bd3 {[%emt 0:01:51]} Nf6 {[%emt 0:01:26]} 7. O-O {[%emt 0:00:19]} d6 {[%emt 0:00:58]} 8. a4 {[%emt 0:02:03]} Be7 {[%emt 0:01:49]} 9. Kh1 {[%emt 0:00:13]} O-O {[%emt 0:01:35]} 10. f4 {[%emt 0:00:07]} b6 {[%emt 0:20:07]} 11. Qf3 {[%emt 0:12:31]} Bb7 {[%emt 0:01:21]} 12. Qg3 {[%emt 0:01:49]} Nc6 {[%emt 0:12:11]} 13. Nxc6 {[%emt 0:03:40]} Bxc6 {[%emt 0:00:32]} 14. Bd2 {[%emt 0:06:56]} Nd7 {[%emt 0:18:01]} 15. Rae1 {[%emt 0:15:03]} Nc5 {[%emt 0:05:12]} 16. e5 {[%emt 0:01:46]} Nxd3 {[%emt 0:03:41]} 17. cxd3 {[%emt 0:00:02]} Rfd8 {[%emt 0:01:57]} 18. Re3 {[%emt 0:05:33]} Qd7 {[%emt 0:04:52]} 19. Qg4 {[%emt 0:02:12]} g6 {[%emt 0:02:44]} 20. Be1 {[%emt 0:03:36]} dxe5 {[%emt 0:02:34]} 21. fxe5 {[%emt 0:00:13]} Qd4 {[%emt 0:00:15]} 22. Qe2 {[%emt 0:01:18]} b5 {[%emt 0:05:30]} 23. Qf2 {[%emt 0:05:31]} Rf8 {[%emt 0:00:38]} 24. Qg3 {[%emt 0:13:28]} b4 {[%emt 0:04:48]} 25. Rf4 {[%emt 0:00:37]} bxc3 {[%emt 0:02:41]} 26. Rxd4 {[%emt 0:03:33]} cxb2 {[%emt 0:00:04]} 27. Rc4 {[%emt 0:00:10]} b1=Q {[%emt 0:01:46]} 28. Rxc6 {[%emt 0:00:12]} Rac8 {[%emt 0:05:35]} 29. Rc4 {[%emt 0:02:25]} Rxc4 {[%emt 0:00:00]} 30. dxc4 {[%emt 0:00:01]} Rd8 {[%emt 0:00:00]} 31. Rb3 {[%emt 0:00:49]} Qc1 {[%emt 0:00:00]} 32. Rc3 {[%emt 0:00:35]} Qa1 {[%emt 0:00:00]} 33. Kg1 {[%emt 0:06:38]} Rd1 {[%emt 0:00:00]} 34. Kf1 {[%emt 0:00:01]} Bh4 {[%emt 0:00:00]} 0-1

[Event "Austrian Women Bundesliga 2023-24"]
[Site "Austria"]
[Date "2024.04.13"]
[Round "8.3"]
[White "Khrapko, Marharyta"]
[Black "Myagmarsuren, Mandukhai"]
[Result "1-0"]
[ECO "C77"]
[WhiteElo "2218"]
[BlackElo "2079"]
[Annotator "RC"]
[PlyCount "71"]
[EventDate "2023.11.21"]
[EventType "team-tourn"]
[EventCountry "AUT"]
[SourceTitle "playchess.com"]
[Source "ChessBase"]
[SourceQuality "1"]
[TimeControl "40/5400+30:1800+30"]

1. e4 {[%emt 0:00:02]} e5 {[%emt 0:00:07]} 2. Nf3 {[%emt 0:00:15]} Nc6 {[%emt 0:00:30]} 3. Bb5 {[%emt 0:00:10]} a6 {[%emt 0:00:35]} 4. Ba4 {[%emt 0:00:05]} Nf6 {[%emt 0:00:35]} 5. d3 {[%emt 0:03:29]} Bc5 {[%emt 0:04:52]} 6. c3 {[%emt 0:00:15]} b5 {[%emt 0:06:23]} 7. Bb3 {[%emt 0:00:13]} d5 {[%emt 0:04:14]} 8. exd5 {[%emt 0:03:32]} Nxd5 {[%emt 0:01:04]} 9. O-O {[%emt 0:00:40]} O-O {[%emt 0:01:14]} 10. Re1 {[%emt 0:03:20]} Bg4 {[%emt 0:12:33]} 11. h3 {[%emt 0:04:53]} Bh5 {[%emt 0:01:27]} 12. Bg5 {[%emt 0:29:47]} Qd6 {[%emt 0:10:34]} 13. Nbd2 {[%emt 0:02:33]} Bg6 {[%emt 0:14:44]} 14. Ne4 {[%emt 0:06:24]} Bxe4 {[%emt 0:00:15]} 15. dxe4 {[%emt 0:00:11]} Nb6 {[%emt 0:00:41]} 16. Qc1 {[%emt 0:12:07]} h6 {[%emt 0:07:08]} 17. Bh4 {[%emt 0:00:50]} Rae8 {[%emt 0:02:37]} 18. Bg3 {[%emt 0:01:42]} g5 {[%emt 0:08:53]} 19. h4 {[%emt 0:07:09]} g4 {[%emt 0:01:47]} 20. Nh2 {[%emt 0:00:01]} Qg6 {[%emt 0:00:18]} 21. h5 {[%emt 0:05:04]} Qxh5 {[%emt 0:02:25]} 22. Bd1 {[%emt 0:02:37]} f5 {[%emt 0:02:52]} 23. exf5 {[%emt 0:00:29]} Qxf5 {[%emt 0:00:04]} 24. Nxg4 {[%emt 0:00:25]} Re6 {[%emt 0:01:26]} 25. b4 {[%emt 0:01:52]} Bxf2+ {[%emt 0:01:55]} 26. Nxf2 {[%emt 0:00:44]} Qg6 {[%emt 0:04:22]} 27. Ne4 {[%emt 0:06:45]} Kh8 {[%emt 0:01:08]} 28. Bc2 {[%emt 0:01:36]} Rg8 {[%emt 0:00:29]} 29. Re2 {[%emt 0:00:48]} Qh5 {[%emt 0:02:10]} 30. Qe1 {[%emt 0:01:37]} Reg6 {[%emt 0:01:33]} 31. Bh4 {[%emt 0:00:07]} Nd5 {[%emt 0:00:39]} 32. Rd2 {[%emt 0:05:09]} Nf4 {[%emt 0:01:31]} 33. Bf6+ {[%emt 0:00:12]} Rxf6 {[%emt 0:03:02]} 34. Nxf6 {[%emt 0:00:01]} Nh3+ {[%emt 0:01:02]} 35. Kh2 {[%emt 0:00:43]} Qg5 {[%emt 0:01:11]} 36. Nxg8 {[%emt 0:01:24]} 1-0

[Event "Austrian Women Bundesliga 2023-24"]
[Site "Austria"]
[Date "2024.04.13"]
[Round "8.4"]
[White "Deak-Sala, Emilia"]
[Black "Anker, Christin"]
[Result "1-0"]
[ECO "A07"]
[WhiteElo "2053"]
[BlackElo "1914"]
[Annotator "NA RC"]
[PlyCount "85"]
[EventDate "2023.11.21"]
[EventType "team-tourn"]
[EventCountry "AUT"]
[SourceTitle "playchess.com"]
[Source "ChessBase"]
[SourceQuality "1"]
[TimeControl "40/5400+30:1800+30"]

1. Nf3 {[%emt 0:00:02]} Nf6 {[%emt 0:00:20]} 2. g3 {[%emt 0:00:05]} d5 {[%emt 0:00:43]} 3. Bg2 {[%emt 0:00:04]} Bf5 {[%emt 0:02:12]} 4. O-O {[%emt 0:00:07]} e6 {[%emt 0:00:40]} 5. d3 {[%emt 0:00:41]} Be7 {[%emt 0:01:30]} 6. Nbd2 {[%emt 0:00:38]} O-O {[%emt 0:03:03]} 7. c3 {[%emt 0:05:10]} c5 {[%emt 0:05:27]} 8. Nh4 {[%emt 0:02:16]} Nc6 {[%emt 0:04:00]} 9. Nxf5 {[%emt 0:04:56]} exf5 {[%emt 0:00:11]} 10. Qc2 {[%emt 0:08:23]} Re8 {[%emt 0:10:49]} 11. e4 {[%emt 0:06:50]} fxe4 {[%emt 0:01:33]} 12. dxe4 {[%emt 0:01:45]} dxe4 {[%emt 0:18:53]} 13. Nxe4 {[%emt 0:00:06]} Qb6 {[%emt 0:15:44]} 14. Be3 {[%emt 0:13:11]} Qa5 {[%emt 0:01:33]} 15. Rfd1 {[%emt 0:15:05]} Rad8 {[%emt 0:01:15]} 16. Rxd8 {[%emt 0:00:49]} Rxd8 {[%emt 0:01:26]} 17. Nxf6+ {[%emt 0:06:17]} Bxf6 {[%emt 0:00:11]} 18. Qf5 {[%emt 0:02:17]} Ne7 {[%emt 0:09:41]} 19. Qxc5 {[%emt 0:03:57]} Qxc5 {[%emt 0:00:11]} 20. Bxc5 {[%emt 0:00:02]} b6 {[%emt 0:21:08]} 21. Ba3 {[%emt 0:04:53]} g6 {[%emt 0:00:00]} 22. Kf1 {[%emt 0:02:37]} Nf5 {[%emt 0:00:00]} 23. Re1 {[%emt 0:04:46]} h5 {[%emt 0:00:00]} 24. c4 {[%emt 0:05:20]} Rd2 {[%emt 0:00:00]} 25. Re8+ {[%emt 0:03:35]} Kg7 {[%emt 0:00:00]} 26. Bd5 {[%emt 0:00:47]} Bd4 {[%emt 0:00:00]} 27. Re2 {[%emt 0:01:18]} Rd1+ {[%emt 0:00:00]} 28. Kg2 {[%emt 0:00:36]} Kf6 {[%emt 0:00:00]} 29. b3 {[%emt 0:08:27]} Ra1 {[%emt 0:00:00]} 30. h3 {[%emt 0:00:00]} g5 {[%emt 0:00:00]} 31. Bf3 {[%emt 0:00:00]} Kg6 {[%emt 0:00:00]} 32. Be4 {[%emt 0:00:00]} Kf6 {[%emt 0:00:22]} 33. Bb4 {[%emt 0:00:00]} a5 {[%emt 0:02:05]} 34. Ba3 {[%emt 0:00:00]} Bc3 {[%emt 0:02:21]} 35. Rc2 {[%emt 0:01:10]} Bd4 {[%emt 0:00:02]} 36. Bf3 {[%emt 0:00:31]} Kg6 {[%emt 0:01:57]} 37. c5 {[%emt 0:00:26]} bxc5 {[%emt 0:00:58]} 38. Bxc5 {[%emt 0:00:03]} Bf6 {[%emt 0:00:41]} 39. Be4 {[%emt 0:00:32]} Re1 {[%emt 0:00:14]} 40. Be3 {[%emt 0:00:23]} Be7 {[%emt 0:00:41]} 41. g4 {[%emt 0:30:24]} hxg4 {[%emt 0:30:07]} 42. hxg4 {[%emt 0:00:08]} Kf6 {[%emt 0:00:00]} 43. Bxf5 {[%emt 0:00:00]} 1-0

[Event "Austrian Women Bundesliga 2023-24"]
[Site "Austria"]
[Date "2024.04.13"]
[Round "8.5"]
[White "Mihok-Juhasz, Barbara"]
[Black "Danielian, Elina"]
[Result "0-1"]
[ECO "B12"]
[WhiteElo "2247"]
[BlackElo "2397"]
[Annotator "RC"]
[PlyCount "96"]
[EventDate "2023.11.21"]
[EventType "team-tourn"]
[EventCountry "AUT"]
[SourceTitle "playchess.com"]
[Source "ChessBase"]
[SourceQuality "1"]
[TimeControl "40/5400+30:1800+30"]

1. e4 {[%emt 0:00:30]} c6 {[%emt 0:00:15]} 2. d4 {[%emt 0:00:00]} d5 {[%emt 0:00:06]} 3. e5 {[%emt 0:00:00]} Bf5 {[%emt 0:00:08]} 4. h4 {[%emt 0:00:07]} a6 {[%emt 0:00:44]} 5. h5 {[%emt 0:00:06]} c5 {[%emt 0:02:02]} 6. dxc5 {[%emt 0:00:18]} Nc6 {[%emt 0:01:51]} 7. Bd3 {[%emt 0:00:18]} Bxd3 {[%emt 0:06:04]} 8. cxd3 {[%emt 0:03:34]} Qa5+ {[%emt 0:00:32]} 9. Kf1 {[%emt 0:08:41]} Qxc5 {[%emt 0:00:30]} 10. Nf3 {[%emt 0:01:18]} e6 {[%emt 0:03:51]} 11. Nc3 {[%emt 0:11:13]} Qb6 {[%emt 0:03:58]} 12. Ne2 {[%emt 0:10:51]} h6 {[%emt 0:04:54]} 13. Rb1 {[%emt 0:06:49]} Nge7 {[%emt 0:03:45]} 14. g3 {[%emt 0:21:15]} Rc8 {[%emt 0:09:29]} 15. Kg2 {[%emt 0:02:38]} d4 {[%emt 0:02:49]} 16. Rh4 {[%emt 0:02:35]} Nd5 {[%emt 0:11:01]} 17. Bd2 {[%emt 0:03:11]} Qb5 {[%emt 0:03:07]} 18. Nexd4 {[%emt 0:06:55]} Nxd4 {[%emt 0:08:45]} 19. Nxd4 {[%emt 0:06:48]} Qd7 {[%emt 0:00:04]} 20. Nf3 {[%emt 0:00:14]} Bc5 {[%emt 0:02:53]} 21. Rc1 {[%emt 0:02:56]} O-O {[%emt 0:05:20]} 22. Rhc4 {[%emt 0:00:42]} b6 {[%emt 0:01:53]} 23. Qe2 {[%emt 0:05:17]} Be7 {[%emt 0:04:38]} 24. Qe4 {[%emt 0:04:07]} b5 {[%emt 0:01:28]} 25. Rxc8 {[%emt 0:00:24]} Rxc8 {[%emt 0:00:04]} 26. Rxc8+ {[%emt 0:00:15]} Qxc8 {[%emt 0:00:03]} 27. a4 {[%emt 0:00:32]} Qc2 {[%emt 0:01:34]} 28. axb5 {[%emt 0:00:20]} axb5 {[%emt 0:00:03]} 29. b4 {[%emt 0:01:02]} Qb2 {[%emt 0:02:46]} 30. Qd4 {[%emt 0:00:56]} Qa3 {[%emt 0:07:09]} 31. Qg4 {[%emt 0:00:33]} Kh8 {[%emt 0:00:23]} 32. Qd4 {[%emt 0:00:49]} Qa4 {[%emt 0:07:48]} 33. Be1 {[%emt 0:00:30]} Kg8 {[%emt 0:00:32]} 34. Bd2 {[%emt 0:00:26]} Bxb4 {[%emt 0:01:05]} 35. Bxb4 {[%emt 0:00:10]} Qxb4 {[%emt 0:00:03]} 36. Qxb4 {[%emt 0:00:38]} Nxb4 {[%emt 0:00:05]} 37. Nd4 {[%emt 0:00:11]} Nxd3 {[%emt 0:00:07]} 38. f4 {[%emt 0:00:10]} b4 {[%emt 0:00:35]} 39. Nb3 {[%emt 0:00:02]} Kh7 {[%emt 0:03:13]} 40. Kf3 {[%emt 0:00:29]} g6 {[%emt 0:01:18]} 41. Ke3 {[%emt 0:32:29]} Nb2 {[%emt 0:30:19]} 42. g4 {[%emt 0:00:00]} gxh5 {[%emt 0:00:00]} 43. gxh5 {[%emt 0:00:00]} Nd1+ {[%emt 0:00:00]} 44. Kf3 {[%emt 0:00:00]} Nc3 {[%emt 0:00:00]} 45. Nd4 {[%emt 0:00:00]} Nd5 {[%emt 0:00:00]} 46. Nb3 {[%emt 0:00:00]} Ne7 {[%emt 0:00:00]} 47. Nd4 {[%emt 0:00:00]} Nf5 {[%emt 0:00:00]} 48. Nxf5 {[%emt 0:00:00]} b3 {[%emt 0:00:00]} 0-1

[Event "Austrian Women Bundesliga 2023-24"]
[Site "Austria"]
[Date "2024.04.13"]
[Round "8.6"]
[White "Papp, Sarah"]
[Black "Cvitan, Ena"]
[Result "1-0"]
[ECO "B15"]
[WhiteElo "2281"]
[BlackElo "2252"]
[Annotator "RC"]
[PlyCount "129"]
[EventDate "2023.11.21"]
[EventType "team-tourn"]
[EventCountry "AUT"]
[SourceTitle "playchess.com"]
[Source "ChessBase"]
[SourceQuality "1"]
[TimeControl "40/5400+30:1800+30"]

1. e4 {[%emt 0:00:03]} c6 {[%emt 0:00:18]} 2. d4 {[%emt 0:00:08]} d5 {[%emt 0:00:09]} 3. Nc3 {[%emt 0:00:31]} dxe4 {[%emt 0:00:14]} 4. Nxe4 {[%emt 0:00:06]} Nf6 {[%emt 0:00:03]} 5. Nxf6+ {[%emt 0:00:09]} exf6 {[%emt 0:00:04]} 6. c3 {[%emt 0:00:13]} Bd6 {[%emt 0:00:06]} 7. Bd3 {[%emt 0:00:09]} O-O {[%emt 0:00:06]} 8. Qc2 {[%emt 0:00:06]} Re8+ {[%emt 0:00:19]} 9. Ne2 {[%emt 0:00:05]} h5 {[%emt 0:00:21]} 10. O-O {[%emt 0:00:21]} h4 {[%emt 0:00:08]} 11. h3 {[%emt 0:00:07]} Nd7 {[%emt 0:00:37]} 12. Bd2 {[%emt 0:00:37]} Nf8 {[%emt 0:00:33]} 13. Rae1 {[%emt 0:01:04]} g6 {[%emt 0:00:10]} 14. c4 {[%emt 0:00:53]} Bd7 {[%emt 0:07:27]} 15. Bc3 {[%emt 0:00:30]} Rc8 {[%emt 0:04:41]} 16. Qd2 {[%emt 0:05:01]} Kg7 {[%emt 0:15:35]} 17. f4 {[%emt 0:14:28]} Bb8 {[%emt 0:06:03]} 18. d5 {[%emt 0:06:46]} cxd5 {[%emt 0:05:10]} 19. cxd5 {[%emt 0:00:08]} Qb6+ {[%emt 0:01:17]} 20. Bd4 {[%emt 0:01:50]} Qd6 {[%emt 0:09:03]} 21. Nc3 {[%emt 0:01:02]} Nh7 {[%emt 0:07:32]} 22. Qf2 {[%emt 0:32:46]} Rxe1 {[%emt 0:04:41]} 23. Qxe1 {[%emt 0:00:12]} Bc6 {[%emt 0:10:51]} 24. Be4 {[%emt 0:05:56]} Re8 {[%emt 0:04:09]} 25. Qxh4 {[%emt 0:03:20]} Qb4 {[%emt 0:07:43]} 26. Rd1 {[%emt 0:03:26]} Bd7 {[%emt 0:06:35]} 27. Bf3 {[%emt 0:08:30]} Bf5 {[%emt 0:02:36]} 28. a3 {[%emt 0:04:35]} Qd6 {[%emt 0:01:48]} 29. Ne2 {[%emt 0:02:29]} Be4 {[%emt 0:03:20]} 30. Qf2 {[%emt 0:01:40]} Kg8 {[%emt 0:01:08]} 31. Bc5 {[%emt 0:01:12]} Qd7 {[%emt 0:00:13]} 32. Nc3 {[%emt 0:03:04]} Bxf3 {[%emt 0:01:38]} 33. Qxf3 {[%emt 0:00:01]} b6 {[%emt 0:00:45]} 34. Bf2 {[%emt 0:00:50]} Qd6 {[%emt 0:01:04]} 35. Nb5 {[%emt 0:01:07]} Qd7 {[%emt 0:00:32]} 36. Nd4 {[%emt 0:00:21]} Bd6 {[%emt 0:00:57]} 37. b4 {[%emt 0:00:55]} Qa4 {[%emt 0:00:31]} 38. Rc1 {[%emt 0:01:51]} a5 {[%emt 0:00:19]} 39. Rc6 {[%emt 0:01:42]} axb4 {[%emt 0:00:16]} 40. Rxd6 {[%emt 0:00:33]} bxa3 {[%emt 0:00:06]} 41. Qb3 {[%emt 0:03:42]} Qa8 {[%emt 0:03:29]} 42. Qa2 {[%emt 0:01:22]} b5 {[%emt 0:06:32]} 43. Nxb5 {[%emt 0:04:04]} Qa4 {[%emt 0:01:04]} 44. Nc3 {[%emt 0:03:37]} Qxf4 {[%emt 0:04:14]} 45. Qxa3 {[%emt 0:00:34]} Ng5 {[%emt 0:02:53]} 46. Ra6 {[%emt 0:01:39]} Kg7 {[%emt 0:01:07]} 47. Qb2 {[%emt 0:06:54]} Re5 {[%emt 0:07:01]} 48. Ra4 {[%emt 0:03:22]} Nxh3+ {[%emt 0:01:01]} 49. gxh3 {[%emt 0:00:34]} Rg5+ {[%emt 0:01:00]} 50. Kf1 {[%emt 0:00:07]} Qh2 {[%emt 0:00:23]} 51. Ne4 {[%emt 0:05:25]} Qh1+ {[%emt 0:01:23]} 52. Ke2 {[%emt 0:00:04]} Re5 {[%emt 0:00:26]} 53. Qd4 {[%emt 0:00:25]} Qxh3 {[%emt 0:00:52]} 54. d6 {[%emt 0:02:16]} Qh5+ {[%emt 0:00:35]} 55. Kd3 {[%emt 0:01:20]} Rd5 {[%emt 0:00:39]} 56. Qxd5 {[%emt 0:01:12]} Qxd5+ {[%emt 0:00:05]} 57. Rd4 {[%emt 0:00:25]} Qb5+ {[%emt 0:01:50]} 58. Kd2 {[%emt 0:00:31]} Qa5+ {[%emt 0:00:21]} 59. Ke2 {[%emt 0:03:40]} Qh5+ {[%emt 0:01:27]} 60. Ke1 {[%emt 0:00:00]} Qa5+ {[%emt 0:03:11]} 61. Kf1 {[%emt 0:00:00]} Qb5+ {[%emt 0:00:22]} 62. Kg1 {[%emt 0:00:00]} Qd7 {[%emt 0:01:55]} 63. Nc5 {[%emt 0:00:00]} Qd8 {[%emt 0:00:28]} 64. d7 {[%emt 0:00:00]} f5 {[%emt 0:00:03]} 65. Kf1 {[%emt 0:00:00]} 1-0

[Event "Austrian Women Bundesliga 2023-24"]
[Site "Austria"]
[Date "2024.04.13"]
[Round "8.7"]
[White "Karacsonyi, Kata"]
[Black "Matnadze Bujiashvili, Ann"]
[Result "0-1"]
[ECO "B61"]
[WhiteElo "2152"]
[BlackElo "2359"]
[Annotator "RC"]
[PlyCount "74"]
[EventDate "2023.11.21"]
[EventType "team-tourn"]
[EventCountry "AUT"]
[SourceTitle "playchess.com"]
[Source "ChessBase"]
[SourceQuality "1"]
[TimeControl "40/5400+30:1800+30"]

1. e4 {[%emt 0:00:03]} c5 {[%emt 0:00:14]} 2. Nf3 {[%emt 0:00:07]} d6 {[%emt 0:00:04]} 3. d4 {[%emt 0:00:10]} cxd4 {[%emt 0:00:04]} 4. Nxd4 {[%emt 0:00:06]} Nf6 {[%emt 0:00:03]} 5. Nc3 {[%emt 0:00:09]} Nc6 {[%emt 0:00:04]} 6. Bg5 {[%emt 0:00:23]} Bd7 {[%emt 0:00:09]} 7. Qd2 {[%emt 0:00:17]} Rc8 {[%emt 0:00:05]} 8. f3 {[%emt 0:00:18]} a6 {[%emt 0:02:24]} 9. O-O-O {[%emt 0:02:11]} Nxd4 {[%emt 0:01:04]} 10. Qxd4 {[%emt 0:00:08]} Qa5 {[%emt 0:00:24]} 11. h4 {[%emt 0:01:11]} Be6 {[%emt 0:02:42]} 12. Kb1 {[%emt 0:17:38]} Nd7 {[%emt 0:04:14]} 13. Nd5 {[%emt 0:07:24]} Qc5 {[%emt 0:08:05]} 14. Qxc5 {[%emt 0:01:47]} Nxc5 {[%emt 0:01:04]} 15. c4 {[%emt 0:09:11]} f5 {[%emt 0:11:17]} 16. Re1 {[%emt 0:24:34]} fxe4 {[%emt 0:01:21]} 17. fxe4 {[%emt 0:00:06]} Nd7 {[%emt 0:04:39]} 18. b3 {[%emt 0:03:36]} Ne5 {[%emt 0:01:25]} 19. Be2 {[%emt 0:03:34]} Bf7 {[%emt 0:01:53]} 20. Bf4 {[%emt 0:06:05]} e6 {[%emt 0:03:17]} 21. Bxe5 {[%emt 0:08:40]} dxe5 {[%emt 0:03:04]} 22. Bg4 {[%emt 0:00:18]} Bc5 {[%emt 0:03:39]} 23. h5 {[%emt 0:03:15]} Rd8 {[%emt 0:01:57]} 24. Nc3 {[%emt 0:00:57]} Ke7 {[%emt 0:01:03]} 25. h6 {[%emt 0:02:09]} g6 {[%emt 0:01:34]} 26. Kc2 {[%emt 0:00:49]} Be8 {[%emt 0:00:44]} 27. Rhf1 {[%emt 0:04:11]} Bc6 {[%emt 0:05:24]} 28. Rf3 {[%emt 0:01:02]} Rhf8 {[%emt 0:00:22]} 29. Ref1 {[%emt 0:01:03]} Rxf3 {[%emt 0:00:29]} 30. Rxf3 {[%emt 0:01:20]} b5 {[%emt 0:02:52]} 31. cxb5 {[%emt 0:02:35]} axb5 {[%emt 0:00:09]} 32. Rd3 {[%emt 0:00:05]} Ra8 {[%emt 0:01:25]} 33. Bf3 {[%emt 0:00:58]} b4 {[%emt 0:01:15]} 34. Na4 {[%emt 0:00:05]} Bd4 {[%emt 0:00:35]} 35. Kb1 {[%emt 0:00:56]} g5 {[%emt 0:00:45]} 36. g4 {[%emt 0:00:36]} Rf8 {[%emt 0:01:17]} 37. Kc1 {[%emt 0:00:30]} Bb5 {[%emt 0:00:15]} 0-1